bitfinex/quotes_BTCUSD_20220111
["timestamp","ask_amount","ask_price","bid_price","bid_amount"]
[1641863073546,0.00085987,41658.0,41655.0,1.11543931]
[1641863073747,0.00085987,41658.0,41655.0,1.07107531]
[1641863074046,0.00085987,41658.0,41656.0,0.10635393]
[1641863074295,0.63394806,41672.0,41663.0,0.49517985]
[1641863074494,0.33214806,41672.0,41663.0,0.49517985]
[1641863074793,0.30146112,41671.0,41663.0,0.05835393]
[1641863074993,0.374026,41670.0,41663.0,0.05835393]
[1641863075596,0.41895529,41669.0,41663.0,0.05835393]
[1641863075793,0.49404799,41668.0,41663.0,0.05835393]
[1641863075995,0.54404799,41668.0,41663.0,0.05835393]
[1641863076693,0.54490776,41668.0,41663.0,0.06235393]
[1641863076894,0.32670056,41664.0,41663.0,0.06235393]
[1641863077098,0.70072656,41664.0,41663.0,0.06235393]
[1641863077797,0.70072656,41664.0,41663.0,0.05835393]
[1641863078045,1.17828239,41664.0,41663.0,0.05835393]
[1641863078843,1.60677139,41664.0,41663.0,0.05835393]
[1641863079443,1.17828239,41664.0,41663.0,0.05835393]
[1641863079844,0.85072656,41664.0,41663.0,0.05835393]
[1641863080044,0.374026,41664.0,41663.0,0.05835393]
[1641863080245,0.12003552,41666.0,41663.0,0.05835393]
[1641863080246,0.00085979,41666.0,41663.0,0.05835393]
[1641863080643,0.00085979,41666.0,41663.0,0.06235393]
[1641863081044,0.00085979,41666.0,41665.0,0.55835393]
[1641863081247,0.060007,41670.0,41665.0,0.05835393]
[1641863081696,0.00085978,41667.0,41665.0,0.05835393]
[1641863082598,0.060007,41670.0,41665.0,0.06535393]
[1641863082796,0.00085977,41668.0,41665.0,0.06535393]
[1641863083697,0.060007,41670.0,41665.0,0.06535393]
[1641863083900,0.00085976,41669.0,41665.0,0.05835393]
[1641863084700,0.00085976,41669.0,41665.0,0.06535393]
[1641863085001,0.991,41676.0,41668.0,0.00120246]
[1641863085200,0.991,41676.0,41669.0,0.05835393]
[1641863085445,0.991,41676.0,41671.0,0.05835393]
[1641863085644,0.01122777,41679.0,41671.0,0.05835393]
[1641863085841,0.01122777,41679.0,41674.0,0.52067206]
[1641863086041,0.26224899,41681.0,41676.0,0.05835393]
[1641863086442,0.00085968,41677.0,41676.0,0.05835393]
[1641863086643,0.00808826,41677.0,41676.0,0.05935393]
[1641863086842,0.38211426,41677.0,41676.0,0.05935393]
[1641863087243,0.38125458,41677.0,41676.0,0.05935393]
[1641863087842,0.38125458,41677.0,41676.0,0.05835393]
[1641863088742,0.38125458,41677.0,41676.0,0.06035393]
[1641863089041,0.43125458,41677.0,41676.0,0.06035393]
[1641863089889,0.43125458,41677.0,41676.0,0.05835393]
[1641863090290,0.38125458,41677.0,41676.0,0.05835393]
[1641863092189,0.43125458,41677.0,41676.0,0.05835393]
[1641863092590,0.43125458,41677.0,41676.0,0.05935393]
[1641863093544,0.70550832,41677.0,41676.0,0.05935393]
[1641863093941,0.70550832,41677.0,41676.0,0.05835393]
[1641863094341,0.38125458,41677.0,41676.0,0.05835393]
[1641863094742,0.00722858,41677.0,41676.0,0.05835393]
[1641863094942,0.00085967,41679.0,41676.0,0.05835393]
[1641863095146,0.00085967,41679.0,41677.0,0.00121535]
[1641863095341,0.00085967,41679.0,41678.0,0.05835393]
[1641863095742,0.09825028,41685.0,41678.0,0.05835393]
[1641863095743,0.26361494,41681.0,41678.0,0.05835393]
[1641863095947,0.374026,41680.0,41678.0,0.05835393]
[1641863096793,0.374026,41680.0,41678.0,0.06135393]
[1641863097996,0.374026,41680.0,41678.0,0.05835393]
[1641863098598,0.374026,41680.0,41678.0,0.06235393]
[1641863098599,0.524026,41680.0,41678.0,0.06235393]
[1641863098795,0.95036433,41679.0,41678.0,0.06235393]
[1641863098994,1.32439033,41679.0,41678.0,0.06235393]
[1641863099193,1.42439033,41679.0,41678.0,0.06235393]
[1641863099396,1.70709863,41679.0,41678.0,0.06235393]
[1641863099793,1.70709863,41679.0,41678.0,0.05835393]
[1641863100194,2.11387469,41679.0,41667.0,0.05835393]
[1641863100451,0.25646711,41670.0,41667.0,0.05835393]
[1641863100647,0.31647711,41670.0,41667.0,0.05835393]
[1641863101049,0.34669765,41669.0,41667.0,0.05835393]
[1641863101253,1.06791836,41668.0,41667.0,0.05835393]
[1641863101446,1.22684094,41668.0,41667.0,0.05835393]
[1641863102446,0.88307153,41668.0,41667.0,0.05835393]
[1641863102646,0.88307153,41668.0,41667.0,0.06035393]
[1641863103246,0.47414895,41668.0,41667.0,0.06035393]
[1641863103448,0.374026,41668.0,41667.0,0.06035393]
[1641863103647,0.424026,41668.0,41667.0,0.06035393]
[1641863104049,0.424026,41668.0,41667.0,0.05835393]
[1641863104495,0.374026,41668.0,41667.0,0.05835393]
[1641863104695,0.06086975,41670.0,41667.0,0.05935393]
[1641863104898,0.00085975,41670.0,41667.0,0.05935393]
[1641863105096,0.00085975,41670.0,41669.0,0.05835393]
[1641863105296,0.40624051,41678.0,41669.0,0.05835393]
[1641863105496,0.374026,41677.0,41669.0,0.05835393]
[1641863105695,0.00085974,41671.0,41669.0,0.05835393]
[1641863106398,0.56282232,41678.0,41669.0,0.05835393]
[1641863106399,0.15658181,41678.0,41669.0,0.05835393]
[1641863106596,0.374026,41677.0,41669.0,0.05835393]
[1641863106797,0.00085973,41672.0,41669.0,0.06235393]
[1641863107197,0.060006,41671.0,41669.0,0.06235393]
[1641863107597,0.060006,41671.0,41669.0,0.29959951]
[1641863108043,0.060006,41671.0,41669.0,0.29559951]
[1641863108643,0.060006,41671.0,41669.0,0.29959951]
[1641863109053,0.060006,41671.0,41669.0,0.06235393]
[1641863109445,0.00085971,41673.0,41669.0,0.06235393]
[1641863109847,0.00085971,41673.0,41669.0,0.05835393]
[1641863110046,0.00085971,41673.0,41667.0,0.26685305]
[1641863110047,0.45817336,41678.0,41668.0,0.05835393]
[1641863110247,0.374026,41677.0,41673.0,0.05835393]
[1641863110448,0.12722754,41679.0,41675.0,0.05835393]
[1641863110646,0.00722954,41679.0,41675.0,0.13220393]
[1641863111245,0.00722954,41679.0,41677.0,0.37124458]
[1641863111700,0.0080892,41679.0,41677.0,0.37124458]
[1641863112501,0.00722954,41679.0,41677.0,0.05835393]
[1641863112700,0.00722954,41679.0,41677.0,0.06635393]
[1641863113401,0.00722954,41679.0,41677.0,0.008]
[1641863114101,0.00722954,41679.0,41667.0,0.5951]
[1641863114305,0.120005,41678.0,41671.0,0.26561329]
[1641863114502,0.120005,41678.0,41672.0,0.75788468]
[1641863114701,0.120005,41678.0,41672.0,1.09768414]
[1641863114904,0.120005,41678.0,41672.0,0.45518256]
[1641863115105,0.00085968,41677.0,41672.0,0.45518256]
[1641863115304,0.00085968,41677.0,41672.0,0.75985979]
[1641863115541,0.00085968,41677.0,41672.0,0.45518256]
[1641863115739,0.00085968,41677.0,41672.0,0.76569056]
[1641863115740,0.06086268,41677.0,41672.0,0.76569056]
[1641863115943,0.06086268,41677.0,41672.0,0.76069056]
[1641863116139,0.06086268,41677.0,41671.0,0.26561329]
[1641863116140,0.060003,41677.0,41668.0,0.35386994]
[1641863116343,0.06086269,41677.0,41666.0,0.00121656]
[1641863116540,0.06086269,41677.0,41667.0,0.374026]
[1641863116742,0.06086269,41677.0,41668.0,0.011]
[1641863117143,0.06000859,41674.0,41668.0,0.011]
[1641863117342,0.24527862,41669.0,41668.0,0.011]
[1641863118041,0.24527862,41669.0,41661.0,0.00120155]
[1641863118443,0.24527862,41669.0,41663.0,0.72639555]
[1641863118644,0.10040162,41672.0,41663.0,0.72639555]
[1641863118847,0.060012,41667.0,41663.0,0.72639555]
[1641863119044,0.060012,41667.0,41664.0,0.68261413]
[1641863119299,0.060012,41667.0,41664.0,0.374026]
[1641863119699,0.060012,41667.0,41663.0,0.38310262]
[1641863119700,0.31011991,41667.0,41663.0,0.38310262]
[1641863119900,0.060012,41667.0,41663.0,0.38310262]
[1641863120300,0.00085966,41673.0,41663.0,0.38310262]
[1641863120301,0.060008,41670.0,41663.0,0.38310262]
[1641863120600,0.060008,41670.0,41664.0,0.27558047]
[1641863121100,0.34929682,41670.0,41663.0,0.39910262]
[1641863121500,0.060012,41667.0,41663.0,0.39910262]
[1641863121702,0.060012,41667.0,41663.0,0.016]
[1641863122104,0.060012,41667.0,41657.0,0.88775833]
[1641863122304,0.060012,41667.0,41658.0,0.374026]
[1641863122703,0.066012,41667.0,41658.0,0.374026]
[1641863122962,0.066012,41667.0,41661.0,0.42625726]
[1641863123954,0.060012,41667.0,41661.0,0.42625726]
[1641863124756,0.066012,41667.0,41661.0,0.43625726]
[1641863125956,0.066012,41667.0,41654.0,0.61421668]
[1641863125957,0.27549388,41663.0,41654.0,0.61421668]
[1641863126255,0.27549388,41663.0,41655.0,0.374026]
[1641863126695,0.27549388,41663.0,41654.0,0.0278726]
[1641863126696,0.09788321,41662.0,41654.0,0.0278726]
[1641863126894,0.31853962,41661.0,41654.0,0.025]
[1641863127093,0.25947769,41655.0,41654.0,0.025]
[1641863127297,0.25947769,41655.0,41654.0,0.399026]
[1641863127494,0.06003,41659.0,41654.0,0.399026]
[1641863127694,0.31853962,41661.0,41654.0,0.025]
[1641863127895,0.26794403,41662.0,41651.0,0.00359125]
[1641863127896,0.374026,41660.0,41651.0,0.00359125]
[1641863128093,0.26794403,41662.0,41650.0,0.39297539]
[1641863128294,0.26794403,41662.0,41651.0,0.00071826]
[1641863128495,0.29477571,41657.0,41651.0,0.00071826]
[1641863128694,0.060032,41655.0,41651.0,0.00071826]
[1641863129296,0.060032,41655.0,41650.0,0.40697539]
[1641863129596,0.060032,41655.0,41651.0,0.0007183]
[1641863130545,0.0952017,41666.0,41650.0,0.70192573]
[1641863130745,0.006,41655.0,41651.0,0.07241198]
[1641863130946,0.006,41655.0,41652.0,0.374026]
[1641863131149,0.006,41655.0,41653.0,0.30452541]
[1641863131343,0.006,41655.0,41654.0,1.90302085]
[1641863131745,0.006,41655.0,41654.0,0.71270485]
[1641863131942,0.2507111,41666.0,41654.0,0.71270485]
[1641863132144,0.2507111,41666.0,41660.0,0.47310609]
[1641863132745,0.2867111,41666.0,41660.0,0.47910609]
[1641863132944,0.2867111,41666.0,41660.0,0.006]
[1641863133744,0.3467251,41666.0,41660.0,0.006]
[1641863133946,0.3107251,41666.0,41656.0,0.41172342]
[1641863134390,0.3107251,41666.0,41656.0,0.7265319]
[1641863134790,0.3397251,41666.0,41656.0,0.7355319]
[1641863134994,0.3397251,41666.0,41658.0,0.34111939]
[1641863135194,0.3397251,41666.0,41659.0,0.30849987]
[1641863135791,0.089014,41666.0,41659.0,0.30849987]
[1641863135991,0.060014,41666.0,41659.0,0.30849987]
[1641863136794,0.084014,41666.0,41659.0,0.31749987]
[1641863137191,0.084014,41666.0,41661.0,0.24945334]
[1641863137391,0.084014,41666.0,41662.0,0.3199259]
[1641863137392,0.024,41666.0,41662.0,0.3199259]
[1641863137592,0.024,41666.0,41662.0,0.30721994]
[1641863138045,0.0320426,41667.0,41662.0,0.30721994]
[1641863138448,0.0320426,41667.0,41659.0,0.40352201]
[1641863138644,0.0540426,41667.0,41662.0,0.01]
[1641863138843,0.1140536,41667.0,41662.0,0.01]
[1641863139244,0.1140536,41667.0,41663.0,0.3364933]
[1641863140048,0.0920536,41667.0,41663.0,0.3364933]
[1641863140247,0.0320426,41667.0,41663.0,0.3364933]
[1641863140850,0.0400426,41667.0,41663.0,0.3444933]
[1641863141251,0.1000546,41667.0,41663.0,0.008]
[1641863142695,0.1100546,41667.0,41663.0,0.007]
[1641863143899,0.1100546,41667.0,41662.0,0.44442754]
[1641863143900,0.0920546,41667.0,41662.0,0.44442754]
[1641863144700,0.1180546,41667.0,41662.0,0.45242754]
[1641863146046,0.0920546,41667.0,41662.0,0.44442754]
[1641863146847,0.0940546,41667.0,41662.0,0.45342754]
[1641863147451,0.002,41667.0,41664.0,0.00129519]
[1641863147649,0.002,41667.0,41666.0,0.00125048]
[1641863147848,0.002,41667.0,41666.0,1.65987448]
[1641863148049,0.00085965,41673.0,41666.0,1.65987448]
[1641863148252,0.00085965,41673.0,41672.0,0.61535548]
[1641863148449,0.00085965,41673.0,41672.0,1.06308087]
[1641863148647,0.06722554,41679.0,41672.0,1.06308087]
[1641863148849,0.06722554,41679.0,41672.0,1.07108087]
[1641863148850,0.0008597,41673.0,41672.0,1.07108087]
[1641863149047,0.0008597,41673.0,41672.0,1.710591]
[1641863149689,0.00722954,41679.0,41672.0,1.410591]
[1641863149890,0.00722954,41679.0,41672.0,0.77108087]
[1641863149891,0.00085971,41675.0,41672.0,0.77108087]
[1641863150089,0.00085971,41675.0,41673.0,0.373694]
[1641863150693,0.37195285,41683.0,41673.0,0.373694]
[1641863150694,0.00777039,41682.0,41678.0,0.0599864]
[1641863150896,0.00722683,41679.0,41678.0,0.0599864]
[1641863152091,0.00722683,41679.0,41674.0,0.11997422]
[1641863152293,0.00722683,41679.0,41676.0,0.0599893]
[1641863152493,0.00722683,41679.0,41677.0,0.210461]
[1641863153141,0.00722683,41679.0,41674.0,0.13397422]
[1641863153340,0.00722683,41679.0,41675.0,0.373694]
[1641863154743,0.00807743,41679.0,41675.0,0.383694]
[1641863154945,0.00807743,41679.0,41678.0,0.0012153]
[1641863155143,0.0008506,41679.0,41678.0,0.2375303]
[1641863155343,0.0008506,41679.0,41678.0,0.7375303]
[1641863155844,0.9834,41688.0,41682.0,0.11994868]
[1641863156048,0.98680176,41688.0,41685.0,0.25194028]
[1641863156244,0.00340176,41688.0,41686.0,0.05997445]
[1641863156444,0.00340176,41688.0,41682.0,0.11994868]
[1641863156696,0.00340176,41688.0,41686.0,0.005]
[1641863156898,0.004,41689.0,41686.0,0.005]
[1641863157096,0.00085052,41687.0,41686.0,0.005]
[1641863158198,0.004,41689.0,41684.0,0.28983244]
[1641863158398,0.00485957,41689.0,41684.0,0.34980996]
[1641863158797,0.00485957,41689.0,41684.0,0.35680996]
[1641863159197,0.00485957,41689.0,41684.0,0.29683244]
[1641863159397,0.004,41689.0,41684.0,0.29683244]
[1641863159598,0.00485957,41689.0,41684.0,0.29683244]
[1641863160002,0.00485957,41689.0,41686.0,0.35614069]
[1641863160003,0.04227218,41689.0,41686.0,0.35614069]
[1641863160640,0.04141261,41689.0,41686.0,0.35614069]
[1641863160841,0.04141261,41689.0,41686.0,0.36414069]
[1641863162044,0.04141261,41689.0,41686.0,0.35614069]
[1641863162444,0.04141261,41689.0,41687.0,0.05997002]
[1641863164693,0.04141261,41689.0,41687.0,0.01]
[1641863165096,1.31641283,41688.0,41687.0,0.01]
[1641863165494,1.73848445,41688.0,41687.0,0.01]
[1641863165693,2.19270755,41688.0,41687.0,0.01]
[1641863165895,2.09270755,41688.0,41687.0,0.01]
[1641863166094,1.49270755,41688.0,41679.0,0.57727776]
[1641863166794,0.0008596,41686.0,41679.0,0.57827776]
[1641863167193,0.0008596,41686.0,41679.0,0.25529365]
[1641863167794,1.21901355,41688.0,41679.0,0.25529365]
[1641863168040,1.21901355,41688.0,41674.0,0.11997204]
[1641863168041,0.00085961,41685.0,41674.0,0.11997204]
[1641863168241,0.00085961,41685.0,41673.0,0.00124487]
[1641863168242,0.00085961,41685.0,41675.0,0.30939265]
[1641863168840,0.00085961,41685.0,41675.0,0.31939265]
[1641863169060,1.21901355,41688.0,41675.0,0.31939265]
[1641863169242,0.00085964,41682.0,41675.0,0.31939265]
[1641863170042,0.00085964,41682.0,41675.0,0.30939265]
[1641863170241,1.21901355,41688.0,41675.0,0.30939265]
[1641863170543,0.00085965,41681.0,41675.0,0.30939265]
[1641863170842,0.25414319,41681.0,41675.0,0.008]
[1641863171043,0.3745842,41680.0,41675.0,0.008]
[1641863171243,0.373694,41679.0,41675.0,0.008]
[1641863171440,0.421694,41679.0,41675.0,0.008]
[1641863171894,0.27313553,41678.0,41675.0,0.008]
[1641863172093,0.73952988,41677.0,41675.0,0.008]
[1641863172295,0.99555295,41676.0,41675.0,0.008]
[1641863172594,0.71924695,41676.0,41667.0,0.00124507]
[1641863172793,0.34555295,41676.0,41675.0,0.013]
[1641863172995,0.71924695,41676.0,41675.0,0.013]
[1641863173997,0.71924695,41676.0,41671.0,0.00072562]
[1641863174197,0.373694,41675.0,41671.0,0.00072562]
[1641863174396,0.32692617,41674.0,41671.0,0.00072562]
[1641863174596,0.71916602,41673.0,41671.0,0.00072562]
[1641863174797,0.373694,41673.0,41671.0,0.00472562]
[1641863174997,0.373694,41673.0,41671.0,0.004]
[1641863175642,0.32692617,41674.0,41671.0,0.004]
[1641863176042,0.017,41675.0,41671.0,0.004]
[1641863176243,0.38729392,41677.0,41668.0,0.31409136]
[1641863176244,0.38643427,41677.0,41668.0,0.31409136]
[1641863176443,0.00808938,41677.0,41670.0,0.00072566]
[1641863176847,0.01908938,41677.0,41670.0,0.00072566]
[1641863177444,0.01822973,41677.0,41668.0,0.32209136]
[1641863177645,0.0190894,41677.0,41671.0,0.00072564]
[1641863178046,0.0080894,41677.0,41671.0,0.00072564]
[1641863178747,0.0310894,41677.0,41671.0,0.00872564]
[1641863179198,0.0310894,41677.0,41672.0,0.43494483]
[1641863179398,0.0310894,41677.0,41673.0,0.247486]
[1641863179598,0.0310894,41677.0,41674.0,0.210507]
[1641863179797,0.03022973,41677.0,41674.0,0.210507]
[1641863179998,0.03108941,41677.0,41674.0,0.210507]
[1641863180196,0.00808941,41677.0,41675.0,0.05998912]
[1641863180400,0.00808941,41677.0,41676.0,0.373656]
[1641863181098,0.00722973,41677.0,41676.0,0.373656]
[1641863182946,0.00722973,41677.0,41676.0,0.389656]
[1641863183142,0.00722973,41677.0,41676.0,0.016]
[1641863184242,0.00722973,41677.0,41673.0,0.1199791]
[1641863184843,0.01308941,41677.0,41673.0,0.1359791]
[1641863185243,0.01308941,41677.0,41674.0,0.373694]
[1641863185844,0.01222973,41677.0,41674.0,0.373694]
[1641863186044,0.00722973,41677.0,41674.0,0.373694]
[1641863186995,0.01222973,41677.0,41674.0,0.387694]
[1641863187492,0.01222973,41677.0,41675.0,0.05998942]
[1641863187694,0.01222973,41677.0,41676.0,1.610477]
[1641863188093,0.00722973,41677.0,41676.0,0.210477]
[1641863188294,0.00722973,41677.0,41676.0,0.21169978]
[1641863188695,0.00722973,41677.0,41676.0,0.26169978]
[1641863188895,0.00722973,41677.0,41676.0,0.89068378]
[1641863189096,0.00722973,41677.0,41676.0,0.23069978]
[1641863189696,0.00722973,41677.0,41676.0,0.229477]
[1641863190097,0.00722973,41677.0,41676.0,0.210477]
[1641863190946,0.00722973,41677.0,41676.0,0.263477]
[1641863191342,0.00722973,41677.0,41676.0,0.313477]
[1641863192145,0.00722973,41677.0,41676.0,0.260477]
[1641863192943,0.00722973,41677.0,41676.0,0.286477]
[1641863193142,0.10722973,41677.0,41676.0,0.286477]
[1641863193945,0.10722973,41677.0,41676.0,0.236477]
[1641863194591,0.10722973,41677.0,41676.0,0.260477]
[1641863194993,0.10722973,41677.0,41676.0,0.291477]
[1641863195593,0.10722973,41677.0,41676.0,0.359957]
[1641863195793,0.10722973,41677.0,41676.0,0.919937]
[1641863196293,0.10722973,41677.0,41676.0,0.888937]
[1641863196493,0.00077805,41679.0,41677.0,1.4]
[1641863196694,0.9788,41687.0,41685.0,0.43264561]
[1641863197093,0.00311154,41688.0,41685.0,0.43264561]
[1641863197695,0.00311154,41688.0,41687.0,0.28649063]
[1641863197954,0.04219059,41689.0,41685.0,0.55260014]
[1641863198146,0.04219059,41689.0,41685.0,0.11995453]
[1641863198748,0.04219059,41689.0,41685.0,0.16995453]
[1641863198947,0.05441261,41689.0,41685.0,0.17995453]
[1641863199149,0.05521544,41689.0,41685.0,0.17995453]
[1641863199647,0.05521544,41689.0,41687.0,0.27177665]
[1641863200048,0.05521544,41689.0,41687.0,0.32177665]
[1641863200248,0.04141261,41689.0,41687.0,0.32177665]
[1641863200848,0.04141261,41689.0,41688.0,0.373694]
[1641863201048,0.04141261,41689.0,41688.0,0.37492062]
[1641863202893,0.04141261,41689.0,41688.0,0.39492062]
[1641863203892,0.04141261,41689.0,41688.0,0.393694]
[1641863204092,0.04141261,41689.0,41688.0,0.373694]
[1641863204893,0.04341261,41689.0,41688.0,0.666547]
[1641863205846,0.04341261,41689.0,41688.0,0.97079259]
[1641863206247,0.04141261,41689.0,41688.0,0.94879259]
[1641863206848,0.04141261,41689.0,41688.0,0.96879259]
[1641863207046,0.04141261,41689.0,41688.0,0.664547]
[1641863207447,0.04141261,41689.0,41688.0,0.393694]
[1641863208248,0.04141261,41689.0,41688.0,0.373694]
[1641863208448,0.04141261,41689.0,41688.0,0.95568434]
[1641863208849,0.04141261,41689.0,41688.0,0.97768434]
[1641863209293,0.04141261,41689.0,41688.0,0.67484366]
[1641863210094,0.04141261,41689.0,41688.0,0.95676315]
[1641863210494,0.04141261,41689.0,41688.0,0.65284366]
[1641863210894,0.04141261,41689.0,41688.0,0.66884366]
[1641863211795,0.04141261,41689.0,41688.0,0.97203233]
[1641863212196,0.04141261,41689.0,41688.0,0.95603233]
[1641863212595,0.04141261,41689.0,41688.0,0.65284366]
[1641863213047,0.04141261,41689.0,41688.0,0.66984366]
[1641863214045,0.04141261,41689.0,41688.0,0.97153678]
[1641863214243,0.04141261,41689.0,41688.0,0.95453678]
[1641863215045,0.04141261,41689.0,41688.0,0.97353678]
[1641863216245,0.04141261,41689.0,41688.0,0.95453678]
[1641863216793,0.04141261,41689.0,41688.0,0.65284366]
[1641863216993,0.04141261,41689.0,41688.0,0.67184366]
[1641863217392,0.04141261,41689.0,41688.0,0.72184366]
[1641863217792,0.04141261,41689.0,41688.0,0.67184366]
[1641863218197,0.04141261,41689.0,41688.0,0.65284366]
[1641863218996,0.04141261,41689.0,41688.0,0.67084366]
[1641863220195,0.04141261,41689.0,41688.0,0.65284366]
[1641863220645,0.04141261,41689.0,41688.0,0.3723841]
[1641863220949,0.04141261,41689.0,41688.0,0.02]
[1641863222243,0.04141261,41689.0,41687.0,0.29791209]
[1641863223045,0.04141261,41689.0,41687.0,0.31991209]
[1641863223647,0.04141261,41689.0,41687.0,0.022]
[1641863224290,0.04141261,41689.0,41686.0,0.109975]
[1641863224492,0.04141261,41689.0,41687.0,0.373591]
[1641863225692,0.04141261,41689.0,41686.0,0.133975]
[1641863225892,0.04141261,41689.0,41687.0,0.26789955]
[1641863226095,0.04141261,41689.0,41688.0,0.373591]
[1641863226293,0.04141261,41689.0,41688.0,0.423591]
[1641863226695,0.04141261,41689.0,41688.0,0.373591]
[1641863226895,0.42327124,41689.0,41688.0,0.016]
[1641863227094,0.84486224,41689.0,41688.0,0.016]
[1641863227497,0.84614143,41689.0,41688.0,0.016]
[1641863227946,0.84486224,41689.0,41688.0,0.016]
[1641863228243,0.84486224,41689.0,41684.0,0.27770951]
[1641863228244,0.83586224,41689.0,41684.0,0.27770951]
[1641863228442,0.373591,41688.0,41680.0,0.45437674]
[1641863228644,0.048,41687.0,41680.0,0.45437674]
[1641863228842,0.34400779,41686.0,41680.0,0.45437674]
[1641863229043,0.34400779,41686.0,41680.0,0.54636384]
[1641863229242,0.34480502,41686.0,41680.0,0.54636384]
[1641863229842,0.34480502,41686.0,41680.0,0.48637674]
[1641863230242,0.34400779,41686.0,41680.0,0.45437674]
[1641863230543,0.00079723,41685.0,41682.0,0.05999057]
[1641863231343,0.009,41686.0,41682.0,0.05999057]
[1641863231698,0.00979723,41686.0,41682.0,0.05999057]
[1641863232696,0.009,41686.0,41682.0,0.05999057]
[1641863232896,0.00079722,41686.0,41682.0,0.05999057]
[1641863233098,0.00079722,41686.0,41683.0,0.373591]
[1641863233099,0.00979722,41686.0,41683.0,0.373591]
[1641863233299,0.00979722,41686.0,41683.0,0.493556]
[1641863233500,0.00979722,41686.0,41683.0,0.543556]
[1641863233899,0.009,41686.0,41683.0,0.543556]
[1641863234200,0.04141261,41689.0,41683.0,0.543556]
[1641863234201,0.00079722,41687.0,41683.0,0.543556]
[1641863234400,0.00079722,41687.0,41685.0,0.119952]
[1641863234599,0.00079722,41687.0,41686.0,0.20914]
[1641863234798,0.00079722,41687.0,41686.0,0.25914]
[1641863234999,0.04141261,41689.0,41686.0,0.25914]
[1641863235198,0.04220981,41689.0,41687.0,0.11994815]
[1641863235642,0.04220981,41689.0,41688.0,0.05]
[1641863236143,0.04141261,41689.0,41688.0,0.05]
[1641863237044,0.05541261,41689.0,41688.0,0.057]
[1641863238141,0.04141261,41689.0,41688.0,0.05]
[1641863238944,0.04141261,41689.0,41688.0,0.357]
[1641863239191,0.05441261,41689.0,41688.0,0.057]
[1641863240993,0.05241261,41689.0,41688.0,0.057]
[1641863241496,0.05241261,41689.0,41688.0,0.047]
[1641863242296,0.04141261,41689.0,41688.0,0.04]
[1641863242943,0.04141261,41689.0,41688.0,0.051]
[1641863243146,0.04941261,41689.0,41688.0,0.051]
[1641863244445,0.04141261,41689.0,41688.0,0.04]
[1641863245046,0.05141261,41689.0,41688.0,0.053]
[1641863246549,0.05141261,41689.0,41688.0,0.013]
[1641863246796,0.04141261,41689.0,41687.0,0.11994815]
[1641863246995,0.04141261,41689.0,41688.0,0.064]
[1641863246996,0.04941261,41689.0,41688.0,0.064]
[1641863248298,0.04141261,41689.0,41688.0,0.05]
[1641863249096,0.05041261,41689.0,41688.0,0.068]
[1641863249499,0.013,41689.0,41688.0,0.06928751]
[1641863249698,0.293,41697.0,41688.0,0.06928751]
[1641863249699,0.00079719,41691.0,41689.0,1.05]
[1641863249899,0.00079719,41691.0,41690.0,0.21034486]
[1641863250099,0.00079719,41691.0,41690.0,0.00127686]
[1641863250299,0.00318828,41697.0,41691.0,1.22351781]
[1641863250551,0.00722605,41698.0,41696.0,0.62177052]
[1641863250754,0.00722605,41698.0,41696.0,0.67177052]
[1641863251050,0.04922605,41698.0,41696.0,0.67477052]
[1641863251855,0.04922605,41698.0,41697.0,0.373591]
[1641863252250,0.00722605,41698.0,41697.0,0.373591]
[1641863253152,0.01722605,41698.0,41697.0,0.383591]
[1641863253954,0.01722605,41698.0,41697.0,0.68556356]
[1641863254193,0.01722605,41698.0,41697.0,0.67556356]
[1641863254194,0.00722605,41698.0,41697.0,0.67556356]
[1641863254996,0.01722605,41698.0,41697.0,0.68556356]
[1641863255196,0.01722605,41698.0,41697.0,0.383591]
[1641863256197,0.00722605,41698.0,41697.0,0.373591]
[1641863256799,0.00722605,41698.0,41695.0,0.17986935]
[1641863257000,0.00722605,41698.0,41697.0,0.01]
[1641863257001,0.01722605,41698.0,41697.0,0.01]
[1641863257702,0.39081705,41698.0,41697.0,0.01]
[1641863258150,0.87976692,41698.0,41697.0,0.01]
[1641863258349,0.38403604,41696.0,41689.0,0.059979]
[1641863258549,0.37425073,41695.0,41689.0,0.059979]
[1641863258748,0.37425073,41695.0,41689.0,0.3432804]
[1641863258948,0.47425073,41695.0,41689.0,0.3432804]
[1641863259149,0.00079107,41694.0,41689.0,0.48623096]
[1641863260149,0.008,41695.0,41689.0,0.48623096]
[1641863260350,0.00079108,41694.0,41692.0,0.05997641]
[1641863261048,0.01579108,41694.0,41692.0,0.05997641]
[1641863261250,0.01579108,41694.0,41689.0,0.46323096]
[1641863261450,0.015,41694.0,41689.0,0.46323096]
[1641863261703,0.015,41694.0,41690.0,0.05997527]
[1641863262403,0.015,41694.0,41691.0,0.059974]
[1641863262801,0.01579822,41694.0,41691.0,0.059974]
[1641863263001,0.02079822,41694.0,41691.0,0.061974]
[1641863263903,0.02,41694.0,41691.0,0.061974]
[1641863264303,0.00079822,41695.0,41691.0,0.059974]
[1641863264707,0.00079822,41695.0,41691.0,0.109974]
[1641863265107,0.023,41695.0,41694.0,0.05997347]
[1641863265305,0.02379822,41695.0,41694.0,0.05997347]
[1641863266144,0.023,41695.0,41694.0,0.05997347]
[1641863266345,0.00079608,41697.0,41694.0,0.05997347]
[1641863267144,0.01479608,41697.0,41694.0,0.05997347]
[1641863267348,0.014,41697.0,41694.0,0.05997347]
[1641863268446,0.00802212,41698.0,41694.0,0.05997347]
[1641863268645,0.00722605,41698.0,41694.0,0.05997347]
[1641863268945,0.00802212,41698.0,41694.0,0.05997347]
[1641863269197,0.02602212,41698.0,41694.0,0.05997347]
[1641863269799,0.02522605,41698.0,41694.0,0.05997347]
[1641863270002,0.02602275,41698.0,41694.0,0.05997347]
[1641863270399,0.00802275,41698.0,41694.0,0.05997347]
[1641863270999,0.00722605,41698.0,41694.0,0.05997347]
[1641863271201,0.02902275,41698.0,41694.0,0.05997347]
[1641863271801,0.0217967,41698.0,41694.0,0.05997347]
[1641863272201,0.021,41698.0,41694.0,0.05997347]
[1641863272402,0.00802126,41698.0,41694.0,0.05997347]
[1641863273046,0.03002126,41698.0,41694.0,0.05997347]
[1641863273447,0.02922456,41698.0,41694.0,0.05997347]
[1641863273646,0.03002107,41698.0,41694.0,0.05997347]
[1641863273847,0.03002107,41698.0,41697.0,0.26595852]
[1641863274048,0.03002107,41698.0,41697.0,0.38144852]
[1641863274447,0.00802107,41698.0,41697.0,0.38144852]
[1641863274647,0.00722456,41698.0,41697.0,0.38144852]
[1641863275249,0.00722456,41698.0,41697.0,0.76003952]
[1641863275850,0.00722456,41698.0,41697.0,0.81003952]